bitfinex/quotes_ETHUSD_20240922
["timestamp","ask_amount","ask_price","bid_price","bid_amount"]
[1726967338623,0.09555438,2617.0,2616.1,3.0]
[1726967338926,0.09554708,2616.9,2616.2,0.05578359]
[1726967339222,9.8457,2617.1,2616.1,3.0]
[1726967339431,0.09554596,2617.0,2616.1,3.0]
[1726967341615,0.09554596,2617.0,2616.2,0.06275654]
[1726967341822,1.34094883,2617.0,2616.2,0.06275654]
[1726967344942,1.34094882,2617.0,2616.2,0.06275654]
[1726967345095,7.43,2617.1,2616.2,0.06275654]
[1726967345429,7.43,2617.1,2616.3,0.06256306]
[1726967345635,7.43,2617.1,2616.1,3.0]
[1726967345847,7.43,2617.1,2616.2,0.06275654]
[1726967346150,7.43,2617.1,2616.2,0.71750463]
[1726967347302,8.02878759,2617.3,2616.4,3.0]
[1726967347501,0.0955369,2617.2,2616.4,3.0]
[1726967347728,0.09553574,2617.2,2616.4,3.0]
[1726967357924,0.09553574,2617.2,2616.4,1.60696332]
[1726967358124,0.90796807,2617.2,2616.4,1.60696332]
[1726967365269,0.81243233,2617.2,2616.4,1.60696332]
[1726967365481,7.43,2617.3,2616.4,0.4675678]
[1726967365634,7.43,2617.3,2616.8,3.0]
[1726967365841,2.4336,2618.0,2616.5,0.89370032]
[1726967366038,2.52910947,2618.0,2616.5,0.89370032]
[1726967366381,2.52910947,2618.0,2617.2,1.60696332]
[1726967366382,0.25291095,2617.9,2617.2,1.60696332]
[1726967366535,0.25291095,2617.9,2616.5,0.4675678]
[1726967366536,0.09551574,2617.8,2616.5,0.4675678]
[1726967366735,0.09551574,2617.8,2616.8,1.60696332]
[1726967367359,0.09551574,2617.8,2617.0,1.60696332]
[1726967367802,0.34842776,2617.9,2617.0,1.60696332]
[1726967368095,3.03224497,2618.2,2617.2,3.0]
[1726967368393,0.09550522,2618.1,2617.2,3.0]
[1726967369395,0.09550522,2618.1,2616.8,3.47948711]
[1726967369698,2.4506,2618.0,2616.9,3.0]
[1726967369893,0.09551169,2617.9,2617.0,0.64794871]
[1726967370258,2.4506,2617.8,2616.9,3.0]
[1726967370462,0.09552173,2617.7,2616.9,3.0]
[1726967370701,2.4506,2617.8,2616.9,3.0]
[1726967370904,0.09552167,2617.7,2616.9,3.0]
[1726967372000,2.4506,2617.8,2616.9,3.0]
[1726967372219,0.24506,2617.7,2616.9,3.0]
[1726967372731,2.4506,2618.0,2617.0,0.4675678]
[1726967373772,2.4506,2618.0,2617.0,3.94705491]
[1726967374007,2.4506,2618.0,2617.1,3.0]
[1726967376334,0.59864497,2618.2,2617.4,3.0]
[1726967376335,3.04924497,2618.2,2617.4,3.0]
[1726967376621,2.4506,2618.5,2617.6,3.47948711]
[1726967377322,2.4506,2618.5,2617.7,3.0]
[1726967381320,2.4506,2618.5,2617.5,0.3]
[1726967390219,2.4506,2618.5,2617.2,0.4675678]
[1726967390532,2.4506,2618.5,2617.0,0.3797948]
[1726967390533,2.4506,2618.5,2617.1,0.4675678]
[1726967392180,2.4506,2618.5,2617.6,1.60552058]
[1726967392342,2.54609116,2618.5,2617.6,1.60552058]
[1726967396788,2.4506,2618.5,2617.6,1.60552058]
[1726967396996,0.24888256,2618.4,2617.6,1.60552058]
[1726967398877,2.293,2618.4,2617.6,1.60552058]
[1726967400602,2.293,2618.2,2617.2,3.42613252]
[1726967400804,2.293,2618.1,2617.4,1.60552058]
[1726967401092,2.293,2618.1,2617.6,1.60552058]
[1726967404436,2.293,2618.4,2618.0,1.60552058]
[1726967404607,2.3312256,2618.6,2618.3,1.60552058]
[1726967404963,2.3312256,2618.6,2618.1,1.60552058]
[1726967406220,0.0954755,2618.5,2617.6,3.0]
[1726967406448,2.3884755,2618.5,2617.6,3.0]
[1726967407298,2.3884755,2618.5,2617.7,1.60552058]
[1726967407493,2.293,2618.5,2617.7,1.60552058]
[1726967407673,2.3884916,2618.5,2617.7,1.60552058]
[1726967407902,2.293,2618.3,2617.7,1.60552058]
[1726967413314,2.293,2618.3,2617.8,0.352563]
[1726967413556,2.4388256,2618.6,2618.1,1.60552058]
[1726967413868,2.4388256,2618.6,2617.9,0.352563]
[1726967413869,2.4388256,2618.6,2618.3,1.60552058]
[1726967414164,2.4388256,2618.6,2618.4,0.352563]
[1726967414330,2.4388256,2618.6,2618.5,0.352563]
[1726967418129,2.4388256,2618.6,2618.1,1.60552058]
[1726967418333,2.4388256,2618.6,2618.5,0.35262694]
[1726967418764,2.4388256,2618.6,2618.2,0.35262694]
[1726967418966,2.4388256,2618.6,2618.5,0.35262694]
[1726967421760,2.4388256,2618.6,2618.5,0.35278997]
[1726967422361,2.4388256,2618.6,2618.1,1.60552058]
[1726967422572,2.4388256,2618.6,2618.2,0.35282913]
[1726967422747,2.4388256,2618.6,2618.3,0.35282913]
[1726967422948,2.4388256,2618.6,2618.4,0.35282913]
[1726967423143,2.4388256,2618.6,2618.5,0.35282913]
[1726967423862,0.0382256,2618.6,2618.5,0.35282913]
[1726967428173,0.0382256,2618.6,2618.5,0.35266714]
[1726967428392,0.0382256,2618.6,2618.2,3.0]
[1726967428573,0.0382256,2618.6,2618.5,0.35265842]
[1726967431849,0.0382256,2618.6,2618.5,0.35258293]
[1726967432354,2.3227256,2618.6,2618.5,0.35258293]
[1726967432549,2.3227256,2618.6,2618.0,3.0]
[1726967432751,2.3227256,2618.6,2618.5,0.35258395]
[1726967433071,2.55499816,2618.6,2618.0,0.24644456]
[1726967433276,2.55499816,2618.6,2617.9,3.0]
[1726967438210,2.65048437,2618.6,2617.7,3.0]
[1726967438428,2.55499816,2618.6,2617.7,3.0]
[1726967438564,2.55499816,2618.6,2617.7,0.4675678]
[1726967438763,2.67489982,2618.5,2617.6,3.0]
[1726967440512,2.67489982,2618.5,2617.9,3.0]
[1726967442208,2.67489982,2618.5,2617.5,0.4675678]
[1726967442385,2.67489982,2618.5,2617.3,3.42613252]
[1726967442386,2.4194,2618.3,2617.3,3.42613252]
[1726967442972,2.4194,2618.3,2617.4,0.4675678]
[1726967446811,2.4194,2618.3,2617.7,3.0]
[1726967447731,2.4194,2618.3,2618.2,3.47672556]
[1726967447940,2.4194,2618.3,2618.1,1.60485534]
[1726967448123,2.4194,2618.3,2617.8,3.0]
[1726967448329,2.4194,2618.3,2617.7,0.4675678]
[1726967448516,2.4194,2618.3,2617.7,1.34233548]
[1726967448701,2.4194,2618.3,2617.7,0.87476768]
[1726967451804,2.4194,2618.3,2617.9,1.60485534]
[1726967452403,2.4194,2618.3,2617.6,3.0]
[1726967452742,2.4194,2618.3,2617.6,1.60485534]
[1726967453038,2.66134,2618.3,2617.8,1.60485534]
[1726967453624,2.66134,2618.3,2617.6,0.4675678]
[1726967453827,2.66134,2618.3,2617.7,1.60485534]
[1726967462884,2.66134,2618.3,2617.5,1.60485534]
[1726967466263,0.09549146,2618.2,2617.2,0.4675678]
[1726967466463,2.3773,2617.8,2616.9,5.280109]
[1726967466769,2.3773,2617.8,2616.7,0.3989947]
[1726967466770,2.47281875,2617.7,2616.7,2.00385004]
[1726967466975,2.3773,2617.5,2616.4,5.280109]
[1726967467201,2.3773,2617.3,2616.4,5.280109]
[1726967467583,2.3773,2617.1,2616.3,0.4675678]
[1726967467986,2.3773,2616.9,2616.3,0.4675678]
[1726967471023,2.3773,2616.9,2616.4,3.0]
[1726967471196,2.3773,2616.9,2616.6,3.0]
[1726967472094,2.3773,2616.9,2616.5,1.16253251]
[1726967472444,2.3773,2616.9,2616.5,0.4675678]
[1726967472589,2.3773,2616.9,2616.3,3.0]
[1726967472785,2.3773,2616.9,2616.3,3.4675678]
[1726967473210,2.3773,2616.9,2616.3,3.0]
[1726967473391,2.3773,2616.9,2616.4,0.4675678]
[1726967474902,2.3773,2616.9,2616.4,1.16253251]
[1726967475103,2.3773,2616.9,2616.5,3.48207933]
[1726967475325,2.3773,2616.9,2616.3,3.0]
[1726967476441,2.2679,2616.7,2616.1,0.4675678]
[1726967476604,3.0,2617.2,2615.7,0.4675678]
[1726967476605,2.2679,2616.5,2615.7,0.4675678]
[1726967477133,2.2679,2616.5,2615.8,0.06338314]
[1726967477741,2.2679,2616.5,2615.8,3.06338314]
[1726967480735,2.2679,2616.3,2615.8,0.06338314]
[1726967480935,2.2679,2616.1,2615.5,3.0382256]
[1726967481135,2.2679,2616.1,2615.6,0.06377028]
[1726967481870,2.2679,2616.1,2615.7,3.0]
[1726967482027,2.2679,2616.1,2615.7,3.4675678]
[1726967482228,2.2679,2616.1,2615.8,0.06338314]
[1726967482771,2.2679,2616.1,2615.8,1.23225397]
[1726967482944,2.2679,2616.1,2615.8,4.01303027]
[1726967483330,2.2679,2616.1,2615.8,3.54546247]
[1726967485565,2.2679,2616.1,2615.8,0.06338314]
[1726967485859,2.2679,2616.1,2615.5,6.98787273]
[1726967486076,2.2679,2616.1,2615.9,0.0631896]
[1726967486386,2.2679,2616.1,2616.0,0.06299607]
[1726967486541,2.2679,2616.1,2615.6,0.4675678]
[1726967486872,2.2679,2616.1,2615.7,0.06357671]
[1726967487187,2.2679,2616.1,2615.5,6.98787273]
[1726967487343,2.2679,2616.1,2615.6,0.06377028]
[1726967487545,2.49469,2616.1,2615.6,0.06377028]
[1726967488274,2.49469,2616.1,2615.5,0.0382256]
[1726967488846,2.49469,2616.1,2615.6,0.06377028]
[1726967489076,2.2679,2616.1,2615.6,0.53133808]
[1726967489373,2.2679,2616.1,2615.5,0.49723926]
[1726967489578,2.2679,2616.1,2615.5,0.0382256]
[1726967490141,2.2679,2616.1,2615.6,3.0]
[1726967491843,2.2679,2616.1,2615.6,3.46454866]
[1726967492155,2.2679,2616.1,2615.7,0.69848536]
[1726967492807,2.2679,2616.1,2615.6,0.46454866]
[1726967493114,2.2679,2616.1,2615.8,3.0]
[1726967494990,2.2679,2616.1,2615.5,0.0382256]
[1726967495890,2.2679,2616.1,2615.5,3.0382256]
[1726967499609,2.2679,2616.1,2615.7,3.48207933]
[1726967499814,2.2679,2616.1,2615.8,3.34820793]
[1726967501249,2.2679,2616.1,2615.8,0.34820793]
[1726967501545,2.2679,2616.1,2615.5,0.0382256]
[1726967501756,0.0955604,2616.4,2615.5,0.0382256]
[1726967501757,2.2642,2616.3,2615.5,0.0382256]
[1726967502059,2.2642,2616.3,2616.0,3.0]
[1726967502411,2.2642,2616.3,2616.0,3.51399033]
[1726967503445,2.2642,2616.3,2616.0,3.0]
[1726967504225,2.2642,2616.3,2616.1,0.64820793]
[1726967507967,0.09554736,2617.0,2616.1,0.64820793]
[1726967507968,2.2642,2616.9,2616.1,0.64820793]
[1726967508267,2.2642,2616.7,2616.0,3.0]
[1726967508558,2.3146,2616.5,2616.0,3.0]
[1726967508743,2.3146,2616.3,2615.6,3.0]
[1726967508928,2.3146,2616.3,2615.5,5.3183346]
[1726967510463,2.3146,2616.3,2615.6,3.0]
[1726967512060,2.3146,2616.3,2615.6,6.48207933]
[1726967513070,2.3146,2616.3,2615.6,6.99606966]
[1726967513392,2.3146,2616.3,2615.7,1.21741986]
[1726967515480,2.3146,2616.3,2616.0,3.0]
[1726967516985,7.43,2616.7,2616.3,3.0]
[1726967516986,2.3146,2616.5,2616.3,3.0]
[1726967517192,2.3146,2617.0,2616.3,3.0]
[1726967517481,3.31906,2617.0,2616.3,3.0]
[1726967517690,2.3146,2616.9,2616.3,3.0]
[1726967517857,2.3146,2616.9,2616.5,3.48207933]
[1726967518076,2.3146,2616.9,2616.6,3.0]
[1726967521893,2.3146,2616.9,2616.3,3.0]
[1726967522549,2.54606,2616.9,2616.3,3.0]
[1726967524351,2.3146,2616.9,2616.3,3.51399033]
[1726967526790,2.3146,2616.9,2616.3,3.0]
[1726967526990,2.3146,2616.9,2616.3,3.51399033]
[1726967531932,1.91,2617.8,2616.7,3.0]
[1726967531933,2.3613,2617.8,2616.7,3.0]
[1726967532210,2.3613,2618.0,2617.8,3.0]
[1726967532628,0.0382256,2618.6,2617.8,3.0]
[1726967532629,2.3613,2618.5,2617.8,3.0]
[1726967536075,2.3613,2618.5,2617.4,0.51080359]
[1726967536507,0.0382256,2618.6,2617.5,0.55]
[1726967536811,0.0382256,2618.6,2617.6,0.51080359]
[1726967536973,0.0382256,2618.6,2617.6,0.88476652]
[1726967537410,0.0382256,2618.6,2618.5,3.0]
[1726967540686,0.0382256,2618.6,2618.5,3.64820793]
[1726967550475,0.0382256,2618.6,2618.5,3.0]
[1726967550678,0.0382256,2618.6,2618.2,3.0]
[1726967551322,2.3957,2618.5,2618.2,3.0]
[1726967560678,2.3957,2618.5,2618.4,3.48207933]
[1726967560878,2.3957,2618.5,2618.4,6.48207933]
[1726967561929,2.3957,2618.5,2617.8,3.0]
[1726967562082,2.63909256,2618.5,2618.1,3.0]
[1726967569523,2.63909256,2618.5,2617.7,0.51080359]
[1726967570589,2.63909256,2618.5,2617.9,3.0]
[1726967578202,2.73457925,2618.5,2617.9,3.0]
[1726967578408,2.4919,2618.3,2617.9,3.0]
[1726967580230,2.4919,2618.3,2617.6,3.0]
[1726967582129,2.4919,2618.3,2617.7,0.51080359]
[1726967582925,2.4919,2618.3,2617.6,3.0]
[1726967588168,0.37277583,2618.4,2616.7,5.280109]
[1726967588169,2.4919,2617.8,2616.7,5.280109]
[1726967588459,2.4919,2617.6,2616.6,3.48207933]
[1726967588785,2.3917,2617.4,2616.6,3.48207933]
[1726967589060,2.48723585,2617.3,2616.1,5.68902183]
[1726967589235,2.3917,2617.1,2616.1,5.88844631]
[1726967589444,2.3917,2616.9,2616.1,5.88844631]
[1726967590149,2.3917,2616.9,2616.3,1.60701365]
[1726967590372,2.3917,2616.9,2616.5,1.60701365]
[1726967592073,2.3917,2616.9,2616.2,3.0]
[1726967592277,2.3917,2616.9,2616.3,0.88884463]
[1726967592491,2.3917,2616.9,2616.5,3.0]
[1726967597895,2.3917,2616.9,2616.0,3.0]
[1726967601294,2.3917,2616.9,2616.4,3.0]
[1726967603680,2.38703739,2616.8,2616.0,3.48129517]
[1726967603882,2.38703739,2616.8,2616.1,3.0]
[1726967604219,2.2915,2616.6,2616.0,3.48129517]
[1726967605448,2.2915,2616.4,2615.7,3.48129517]
[1726967606912,2.2915,2616.4,2615.8,3.0]
[1726967607514,2.2915,2616.4,2615.8,2.95]
[1726967609841,2.4807,2616.3,2615.8,2.95]
[1726967610007,2.57626144,2616.3,2615.6,3.0]
[1726967611135,2.4807,2616.3,2615.6,3.0]
[1726967611502,2.57627203,2616.3,2615.6,3.0]
[1726967611706,2.4807,2616.1,2615.6,3.0]
[1726967615139,2.4807,2616.1,2615.8,3.48129517]
[1726967616899,2.4807,2616.4,2615.9,3.0]
[1726967617349,2.4807,2616.4,2616.2,3.0]
[1726967617653,2.4807,2616.6,2616.3,0.64812952]
[1726967617981,2.4807,2616.6,2616.2,3.0]
[1726967621704,2.4807,2616.6,2615.8,3.48129517]
[1726967621705,2.4807,2616.6,2615.9,3.0]
[1726967624578,2.4807,2616.6,2616.1,3.48129517]
[1726967624780,2.4807,2616.6,2616.2,3.0]
[1726967625581,2.4807,2616.6,2615.8,3.0]
[1726967625785,2.4807,2616.6,2615.9,0.8280109]
[1726967626578,2.4807,2616.6,2616.0,3.0]
[1726967627104,2.4807,2616.6,2616.3,3.0]
[1726967627582,2.4762,2617.0,2616.3,3.0]
[1726967627791,2.4762,2617.0,2616.3,3.68756464]
[1726967648015,2.4762,2617.0,2616.4,1.60689445]
[1726967649317,0.09553506,2616.9,2616.2,1.60689445]
[1726967649524,2.4177,2616.8,2616.2,1.60689445]
[1726967649978,0.09553974,2617.2,2616.1,6.48203602]
[1726967650183,2.4177,2617.2,2616.3,0.39435127]
[1726967650565,2.4177,2617.7,2616.3,0.39435127]
[1726967650687,2.4177,2617.7,2616.4,0.40891283]
[1726967650994,2.4177,2617.7,2616.5,0.39435127]
[1726967651192,3.40247,2617.7,2616.5,0.39435127]
[1726967651539,3.40247,2617.7,2617.0,3.0]
[1726967652038,2.4177,2617.7,2617.2,3.48203602]
[1726967652184,2.4177,2617.9,2617.5,3.48203602]
[1726967652896,2.4177,2617.9,2617.6,3.0]
[1726967655645,2.4177,2617.9,2617.0,5.280109]
[1726967655646,2.4177,2617.9,2617.1,3.0]
[1726967655824,2.4177,2617.9,2617.2,3.48203602]
[1726967656004,2.4177,2617.9,2617.3,3.0]
[1726967657007,2.51320119,2618.2,2617.3,3.0]
[1726967660038,2.4177,2618.2,2617.3,3.0]
[1726967660728,2.3821,2618.0,2617.3,3.0]
[1726967667529,0.0955018,2617.9,2617.3,3.0]
[1726967667746,0.24776018,2617.9,2617.3,3.0]
[1726967671738,2.38640864,2617.8,2617.1,3.0]
[1726967674003,2.2909,2617.6,2616.6,3.48203602]
[1726967674137,2.2909,2617.4,2616.6,3.48203602]
[1726967674355,0.22909,2617.3,2616.6,3.48203602]
[1726967675452,0.22909,2617.3,2616.7,3.0]
[1726967675896,2.2909,2617.2,2616.7,3.0]
[1726967681155,2.2909,2617.8,2616.3,0.8032641]
[1726967681669,2.2909,2617.8,2616.9,3.0]
[1726967683319,2.2909,2617.8,2616.9,2.95]
[1726967683664,2.710984,2617.7,2616.9,2.95]
[1726967684095,2.38641909,2617.6,2616.9,2.95]
[1726967684596,2.2909,2617.6,2616.9,2.95]
[1726967684975,2.38642348,2617.6,2616.9,2.95]
[1726967689992,2.38642348,2617.6,2616.8,1.60638319]
[1726967690184,2.4732,2617.4,2616.8,1.60638319]
[1726967697909,2.147781,2617.4,2616.8,1.60638319]
[1726967698423,2.147781,2617.4,2616.5,3.0]
[1726967698577,2.147781,2617.4,2616.8,1.60638319]
[1726967702717,2.147781,2617.4,2616.3,0.8032641]
[1726967702876,0.09553213,2617.6,2616.0,0.39532108]
[1726967702877,2.81157538,2617.3,2616.1,0.55]
[1726967703085,2.5687322,2617.3,2616.1,0.55]
[1726967703619,2.5687322,2617.3,2616.6,1.60638319]
[1726967703779,2.4732,2617.3,2616.6,1.60638319]
[1726967704596,2.56873218,2617.3,2616.6,1.60638319]
[1726967704821,2.4732,2617.3,2616.6,1.60638319]
[1726967706213,2.72052,2617.3,2616.6,1.60638319]
[1726967708781,2.3808,2616.9,2616.0,0.39532108]
[1726967708988,2.3808,2616.7,2616.0,0.39532108]
[1726967709189,2.3808,2616.5,2615.6,1.60638319]
[1726967710290,2.3808,2616.5,2615.8,1.60638319]
[1726967710907,2.3808,2616.5,2615.8,4.60638319]
[1726967711137,0.0955608,2616.4,2615.8,3.0]
[1726967711285,2.3808,2616.2,2615.5,0.0382256]
[1726967711487,2.3808,2616.0,2615.5,0.0382256]
[1726967714884,2.47637741,2616.0,2615.5,0.0382256]
[1726967724217,2.00689741,2616.0,2615.5,0.0382256]
[1726967724528,2.3808,2615.7,2615.5,0.0382256]
[1726967724731,2.90562835,2615.6,2615.5,0.0382256]
[1726967725493,2.810026,2615.6,2615.5,0.0382256]
[1726967731335,2.3808,2615.6,2615.5,0.0382256]
[1726967738139,2.3006,2616.5,2615.9,1.91136]
[1726967738342,2.39616767,2616.5,2616.0,1.91127]
[1726967738664,2.54021677,2616.4,2616.0,1.91127]
[1726967739045,0.09557337,2616.3,2615.8,1.91141]
[1726967739369,2.3006,2616.2,2615.8,1.9114]
[1726967739529,2.39617843,2616.2,2615.7,1.91153]
[1726967740240,2.39617843,2616.2,2615.6,1.91158]
[1726967740427,2.85086895,2616.2,2615.6,1.91158]
[1726967743387,2.3006,2615.9,2615.5,0.0382256]
[1726967743735,2.39620023,2615.8,2615.5,0.0382256]
[1726967746751,4.2122,2615.6,2615.5,0.0382256]
[1726967746936,6.50771515,2615.6,2615.5,0.0382256]
[1726967747131,6.50771515,2615.6,2615.5,3e-08]
[1726967747570,2.3006,2615.2,2614.7,0.0382256]
[1726967747771,2.3006,2615.0,2614.7,0.0382256]
[1726967748073,0.09562075,2614.9,2614.7,0.0382256]
[1726967748282,2.3006,2615.0,2614.7,0.0382256]
[1726967748453,0.09562074,2614.9,2614.7,0.0382256]
[1726967748646,2.70105218,2615.0,2614.7,0.0382256]
[1726967748999,2.79667291,2615.0,2614.7,0.0382256]
[1726967750444,2.70105218,2615.0,2614.7,0.0382256]
[1726967750763,0.09562069,2614.9,2614.7,0.0382256]
[1726967750938,0.37528798,2614.9,2614.7,0.0382256]
[1726967752934,2.3006,2615.0,2614.8,1.91213]
[1726967754564,2.26,2615.4,2615.0,1.91197]
[1726967755142,2.35560565,2615.4,2615.0,1.91197]
[1726967755643,2.35560565,2615.4,2614.8,3.82431]
[1726967755846,2.35560565,2615.4,2614.9,1.91211]
[1726967755847,2.26,2615.2,2614.9,1.91211]
[1726967756160,2.35560747,2615.2,2614.8,3.82427]
[1726967756351,2.35560747,2615.2,2614.8,1.91213]
[1726967756552,2.35560747,2615.2,2614.8,3.82427]
[1726967756863,2.35560747,2615.2,2614.8,1.91213]
[1726967757062,0.2591168,2615.1,2614.8,1.91213]
[1726967758187,0.2591168,2615.1,2614.8,3.82427]
[1726967758484,2.26,2615.2,2614.8,3.82427]
[1726967758681,2.26,2615.2,2614.7,3.8626856]
[1726967758984,2.26,2615.2,2614.7,1.9504356]
[1726967759486,2.26,2615.2,2614.8,1.91218]
[1726967760679,0.09561676,2615.1,2614.7,1.9504356]
[1726967760893,0.54591649,2615.1,2614.7,1.9504356]
[1726967761201,0.45029973,2615.1,2614.7,1.9504356]
[1726967761865,0.45029973,2615.1,2614.8,1.91218]
[1726967762748,2.26,2615.0,2614.7,1.9504356]
[1726967762949,0.27102997,2614.9,2614.7,1.9504356]
[1726967763391,0.27102997,2614.9,2614.7,3.8626456]
[1726967763549,0.27102997,2614.9,2614.7,1.9504356]
[1726967764750,2.26,2614.8,2614.7,0.0382256]
[1726967769862,2.35562767,2614.8,2614.7,0.0382256]
[1726967770893,2.26,2614.8,2614.7,0.0382256]
[1726967775721,4.72219,2614.8,2614.7,0.0382256]
[1726967775887,5.02392813,2614.8,2614.7,0.0382256]
[1726967776232,5.87851336,2614.8,2614.7,0.0382256]
[1726967776523,5.78287523,2614.8,2614.7,0.0382256]
[1726967776890,3.32068523,2614.8,2614.7,0.0382256]
[1726967777083,3.41632927,2614.8,2614.7,0.0382256]
[1726967777483,5.32851927,2614.8,2614.7,0.0382256]
[1726967777916,3.32068523,2614.8,2614.7,0.0382256]
[1726967778115,2.4661,2614.8,2614.7,0.0382256]
[1726967780002,2.4661,2615.1,2614.8,1.91218]
[1726967780212,7.43,2615.4,2614.8,1.91218]
[1726967780213,9.8961,2615.4,2614.8,1.91218]
[1726967780405,9.8961,2615.4,2615.0,1.91204]
[1726967780617,11.076879,2615.4,2615.0,1.91204]
[1726967782700,1.91153,2615.7,2615.2,1.91188]
[1726967782701,2.4661,2615.7,2615.2,1.91188]
[1726967782896,2.4661,2615.7,2615.2,1.91186]
[1726967783435,0.09560005,2615.6,2615.2,1.91186]
[1726967787705,2.4661,2615.5,2615.0,1.91201]
[1726967787904,2.4661,2615.5,2614.7,0.0382256]
[1726967787905,0.0956047,2615.4,2614.7,0.0382256]
[1726967788106,4.37798,2615.3,2614.7,0.0382256]
[1726967788346,2.4661,2615.1,2614.7,0.0382256]
[1726967788552,0.35179188,2615.0,2614.7,0.0382256]
[1726967789450,2.3605,2614.9,2614.7,0.0382256]
[1726967790015,0.09562216,2614.8,2614.7,0.0382256]
[1726967790244,4.91831216,2614.8,2614.7,0.0382256]
[1726967791319,4.91831216,2614.8,2613.9,0.0382256]
[1726967791520,2.9105,2614.3,2613.9,0.0382256]
[1726967791733,0.09565383,2614.2,2613.9,0.0382256]
[1726967792730,3.00615509,2614.3,2613.9,0.0382256]
[1726967793653,2.3605,2614.2,2613.9,0.0382256]
[1726967793862,0.09565762,2614.1,2613.9,0.0382256]
[1726967794148,0.93636304,2614.1,2613.9,0.0382256]
[1726967800062,2.3605,2614.2,2613.9,0.0382256]
[1726967800450,0.09564892,2614.1,2613.9,0.0382256]
[1726967801950,2.3605,2614.2,2613.9,1.9510756]
[1726967802151,0.09565069,2614.1,2613.9,0.0382256]
[1726967803538,0.09565069,2614.1,2613.9,1.9510556]
[1726967803737,2.3605,2614.2,2613.9,1.9510656]
[1726967803965,0.23605,2614.1,2613.9,1.9510656]
[1726967804567,0.33170062,2614.1,2613.9,0.0382256]
[1726967804878,0.23605,2614.1,2613.9,0.0382256]
[1726967805254,0.33170238,2614.1,2613.9,0.0382256]
[1726967805487,0.23605,2614.1,2613.9,0.0382256]
[1726967805785,0.23605,2614.1,2613.9,1.9510656]
[1726967806076,0.23605,2614.1,2614.0,1.91277]
[1726967808076,2.69219877,2614.1,2613.9,0.0382256]
[1726967808332,2.45614877,2614.1,2613.9,0.0382256]
[1726967809153,2.9105,2614.0,2613.9,0.0382256]
[1726967809356,4.91894486,2614.0,2613.9,0.0382256]
[1726967809554,3.00617486,2614.0,2613.9,0.0382256]
[1726967809769,3.49805535,2614.0,2613.9,0.0382256]
[1726967810158,5.41082535,2614.0,2613.9,0.0382256]
[1726967812626,2.3595,2613.8,2613.2,0.0382256]
[1726967812920,2.3595,2613.3,2613.2,0.0382256]
[1726967813131,0.09568531,2613.3,2613.2,0.0382256]
[1726967813274,2.45517681,2613.5,2613.2,0.0382256]
[1726967813991,0.55,2613.4,2613.2,0.0382256]
[1726967814207,0.09569029,2613.3,2613.2,0.0382256]
[1726967814512,0.09568977,2613.3,2613.2,0.0382256]
[1726967814668,0.0956777,2613.4,2613.2,0.0382256]
[1726967817016,0.09567616,2613.5,2613.3,1.91328]
[1726967817311,0.09567616,2613.5,2613.2,1.9515756]
[1726967819111,0.09567616,2613.5,2613.2,0.0382256]
[1726967819507,0.09567339,2613.6,2613.2,0.0382256]
[1726967819713,0.09567339,2613.6,2613.3,1.91324]
[1726967819915,0.09567339,2613.6,2613.2,0.0382256]
[1726967820091,0.09567339,2613.6,2613.2,1.9515856]
[1726967820295,2.59545,2613.7,2613.2,0.0382256]
[1726967820491,0.450838,2613.6,2613.2,0.0382256]
[1726967820816,0.09567586,2613.5,2613.2,0.0382256]
[1726967821395,0.09567611,2613.5,2613.2,0.0382256]
[1726967821679,0.450838,2613.6,2613.2,0.0382256]
[1726967821890,2.3595,2613.7,2613.2,0.0382256]
[1726967822212,2.3595,2613.7,2613.4,1.9132]
[1726967822578,2.45516566,2613.7,2613.4,1.9132]
[1726967822899,2.45516566,2613.7,2613.2,0.0382256]
[1726967823099,2.60501657,2613.6,2613.2,0.0382256]
[1726967823309,0.0956775,2613.5,2613.2,0.0382256]
[1726967824077,0.55,2613.3,2613.2,0.0382256]
[1726967825817,2.46328,2613.3,2613.2,0.0382256]
[1726967825989,2.55896842,2613.3,2613.2,0.0382256]
[1726967826190,3.59097592,2613.3,2613.2,0.0382256]
[1726967826389,5.95047592,2613.3,2613.2,0.0382256]
[1726967826606,3.9415075,2613.3,2613.2,0.0382256]
[1726967826811,4.03719873,2613.3,2613.2,0.0382256]
[1726967827009,3.48719873,2613.3,2613.2,0.0382256]
[1726967827213,2.3595,2613.3,2613.2,0.0382256]
[1726967827634,2.45518297,2613.3,2613.2,0.0382256]
[1726967827819,4.91846297,2613.3,2613.2,0.0382256]
[1726967828533,4.82278,2613.3,2613.2,0.0382256]
[1726967828830,5.84521266,2613.3,2613.2,0.0382256]
[1726967829030,5.94090284,2613.3,2613.2,0.0382256]
[1726967830637,8.94090269,2613.3,2613.2,0.0382256]
[1726967830794,8.84521266,2613.3,2613.2,0.0382256]
[1726967831416,8.84521266,2613.3,2612.4,0.0382256]
[1726967831417,1.91365,2612.9,2612.4,0.0382256]
[1726967831640,0.09570832,2613.0,2612.4,0.0382256]
[1726967831788,0.09569938,2613.2,2612.4,0.0382256]
[1726967832093,4.49058394,2613.3,2612.6,1.91375]
[1726967832294,4.49058394,2613.3,2612.6,2.10894756]
[1726967833348,1.91339,2613.2,2612.6,1.91375]
[1726967833499,0.0956904,2613.1,2612.6,1.91375]
[1726967835249,0.55,2613.1,2612.6,1.91375]
[1726967835453,0.09569448,2613.0,2612.6,1.91375]
[1726967835638,0.55,2613.1,2612.6,1.91375]
[1726967835948,0.09569446,2613.0,2612.6,1.91375]
[1726967836147,0.55,2613.1,2612.6,1.91375]
[1726967836311,1.05406856,2613.1,2612.6,1.91375]
[1726967837223,0.55,2613.2,2612.7,1.91371]
[1726967837638,2.4816,2613.3,2612.8,1.91365]
[1726967837840,0.09568631,2613.2,2612.9,1.91357]
[1726967839559,0.09568631,2613.2,2612.8,1.91365]
[1726967840348,0.09568631,2613.2,2612.8,1.9136]
[1726967840549,2.4816,2613.5,2613.0,1.91347]
[1726967840759,2.57728351,2613.5,2612.8,1.91359]
[1726967840916,4.49042351,2613.5,2612.9,1.91353]